bitfinex-derivatives/quotes_ETHF0:USTF0_20220103
["timestamp","ask_amount","ask_price","bid_price","bid_amount"]
[1641221405785,0.128157,3820.5,3819.8,2.00479]
[1641221406385,0.128157,3820.5,3818.7,2.00479]
[1641221406386,1.5,3820.1,3818.9,0.87130145]
[1641221406591,1.5,3819.9,3818.7,2.00479]
[1641221407185,1.2949,3820.1,3818.7,2.00479]
[1641221407385,0.7458,3820.1,3818.7,2.00479]
[1641221407787,0.128157,3820.5,3819.0,2.80822073]
[1641221408186,2.00479,3820.2,3818.7,2.00479]
[1641221408387,1.5,3819.7,3818.7,2.00479]
[1641221408589,1.5,3819.4,3817.8,1.16173526]
[1641221408790,1.5,3819.2,3818.1,1.45189525]
[1641221409090,14.24,3819.4,3818.4,1.16173526]
[1641221409289,1.5,3818.5,3818.1,3.051e-05]
[1641221409489,1.5,3818.2,3818.1,3.051e-05]
[1641221409692,1.551017,3818.2,3817.8,1.74220478]
[1641221409891,1.5,3818.0,3817.8,1.74220478]
[1641221410091,1.5,3818.0,3816.2,33.20319355]
[1641221410092,1.5,3818.0,3816.6,0.74072485]
[1641221410290,2.00479,3817.5,3816.6,2.74551485]
[1641221410490,2.75849,3817.5,3816.7,0.128157]
[1641221411094,0.7537,3817.5,3816.7,0.128157]
[1641221411289,0.7537,3817.5,3817.0,1.3089228]
[1641221412092,0.7537,3817.5,3816.7,0.128157]
[1641221412993,1.5,3817.3,3816.6,2.00479]
[1641221413191,1.5,3817.3,3816.3,2.00479]
[1641221413792,0.128157,3817.4,3816.3,2.00479]
[1641221414194,2.00479,3816.8,3815.9,2.00479]
[1641221414391,2.00479,3816.8,3816.0,0.128157]
[1641221415091,2.00479,3816.8,3816.0,0.68394245]
[1641221415291,2.00479,3816.8,3816.0,0.55578545]
[1641221416393,2.00479,3816.8,3815.9,2.00479]
[1641221416595,2.00479,3816.8,3816.0,0.128157]
[1641221417197,0.5491,3817.6,3816.0,0.128157]
[1641221417397,34.04038669,3818.4,3816.2,1.30918669]
[1641221417796,1.5,3818.1,3816.2,1.30918669]
[1641221417996,1.5,3818.3,3816.2,1.30918669]
[1641221418195,34.04038669,3818.4,3816.2,1.30918669]
[1641221418196,45.28038669,3818.4,3816.2,1.30918669]
[1641221418396,2.00479,3817.4,3816.5,2.00479]
[1641221418796,2.00479,3817.4,3816.3,0.55581293]
[1641221420297,2.00479,3817.4,3816.5,2.00479]
[1641221420497,1.5,3817.1,3816.5,2.00479]
[1641221420699,2.0268,3817.1,3816.3,0.55581293]
[1641221420899,0.5268,3817.1,3816.3,0.55581293]
[1641221421098,1.5,3816.4,3816.3,0.55581293]
[1641221421400,2.86091709,3816.4,3815.6,1.74220478]
[1641221421598,1.5,3815.8,3815.6,3.21133055]
[1641221421798,2.3253,3815.8,3815.3,1.74220478]
[1641221421999,2.3253,3815.8,3814.7,5.86576523]
[1641221422000,1.5,3815.4,3814.7,5.86576523]
[1641221422198,1.31027769,3815.2,3814.7,5.86576523]
[1641221422400,3.50479,3814.8,3814.7,5.86576523]
[1641221422599,4.367307,3814.8,3814.4,3.62973812]
[1641221422900,1.15781565,3814.0,3813.0,4.13007064]
[1641221423098,1.5,3813.9,3813.0,4.13007064]
[1641221423298,3.31631565,3814.0,3813.0,4.13007064]
[1641221423499,1.5,3813.1,3812.3,3.67449022]
[1641221423799,0.7411,3813.1,3812.6,2.93959217]
[1641221424099,1.43982529,3813.1,3812.6,2.93959217]
[1641221424401,4.00958,3812.7,3812.0,4.04193924]
[1641221424999,4.00958,3812.7,3812.0,0.02955544]
[1641221425199,4.5,3812.1,3812.0,5.544e-05]
[1641221425401,5.199417,3812.1,3810.7,2.00479]
[1641221425601,1.5,3811.6,3810.7,2.00479]
[1641221426003,4.198207,3811.5,3810.7,2.00479]
[1641221426402,2.00479,3811.3,3810.7,2.00479]
[1641221426601,2.72759,3811.3,3810.7,2.00479]
[1641221427003,2.72759,3811.3,3810.9,0.88261168]
[1641221428205,2.72759,3811.3,3810.8,0.128157]
[1641221428402,2.00479,3811.3,3810.8,0.128157]
[1641221428603,2.132947,3811.3,3810.8,0.128157]
[1641221428803,2.132947,3811.3,3810.7,2.00479]
[1641221429006,1.5,3811.2,3810.5,0.88261168]
[1641221429203,2.132947,3811.3,3810.7,0.88261168]
[1641221429204,1.5,3811.0,3810.7,0.88261168]
[1641221429402,0.051017,3810.9,3810.7,0.88261168]
[1641221430204,0.051017,3810.9,3810.4,0.88261168]
[1641221430403,2.00479,3810.6,3810.4,1.01076868]
[1641221430605,0.051017,3810.5,3810.4,1.01076868]
[1641221430806,2.00479,3810.6,3810.4,1.24075968]
[1641221431005,2.87941535,3810.6,3810.4,0.128157]
[1641221431408,2.93043235,3810.6,3810.4,0.128157]
[1641221431605,2.00479,3811.3,3810.4,0.128157]
[1641221431807,2.00479,3811.3,3810.5,0.229991]
[1641221432008,1.4681148,3811.0,3810.5,0.229991]
[1641221432209,1.17449184,3810.7,3810.5,0.229991]
[1641221432607,1.69779184,3810.7,3810.3,2.00479]
[1641221432809,0.5233,3810.7,3810.3,2.00479]
[1641221433210,1.31194341,3810.4,3808.9,0.86199923]
[1641221433409,1.5,3810.0,3808.9,0.86199923]
[1641221433712,0.5233,3810.7,3810.4,1.78078431]
[1641221434008,1.31203464,3810.5,3809.8,2.96797384]
[1641221434409,3.50479,3809.9,3809.8,2.96797384]
[1641221434609,2.640707,3809.9,3809.8,2.96797384]
[1641221435019,2.58969,3809.9,3809.8,3.19796484]
[1641221435410,0.5849,3809.9,3809.8,2.96797384]
[1641221435613,0.5849,3809.9,3809.5,0.128157]
[1641221435811,2.00479,3810.1,3809.5,0.128157]
[1641221436512,2.00479,3810.1,3809.3,2.00479]
[1641221436712,2.83259,3810.1,3809.3,2.00479]
[1641221437515,2.83259,3810.1,3809.4,0.128157]
[1641221437712,0.8278,3810.1,3809.4,0.128157]
[1641221437916,2.00479,3810.6,3809.4,0.128157]
[1641221438413,2.00479,3810.6,3809.7,2.00479]
[1641221439313,0.128157,3810.5,3809.7,2.00479]
[1641221439514,0.7258,3810.5,3809.7,2.00479]
[1641221441819,2.00479,3810.6,3809.7,2.00479]
[1641221442017,2.00479,3810.6,3809.4,1.628157]
[1641221442219,2.00479,3810.6,3809.4,1.43968057]
[1641221442420,1.31152357,3811.6,3810.1,1.5]
[1641221442624,25.48547732,3812.8,3810.1,0.5433]
[1641221442824,1.5,3813.0,3810.1,0.5433]
[1641221443222,32.2836,3813.2,3810.1,0.5433]
[1641221443423,1.5,3812.8,3810.1,1.38958676]
[1641221443622,1.5,3812.4,3810.1,1.38958676]
[1641221443823,0.5456,3812.8,3810.1,1.38958676]
[1641221444221,1.5,3812.5,3810.1,1.38958676]
[1641221444423,2.00479,3812.4,3811.6,2.00479]
[1641221444622,0.128157,3812.3,3811.6,2.00479]
[1641221445423,0.128157,3812.3,3811.6,2.132947]
[1641221446025,0.128157,3812.3,3811.2,1.76337187]
[1641221446223,2.00479,3812.4,3811.2,1.76337187]
[1641221446426,2.00479,3812.8,3812.1,2.00479]
[1641221446629,2.00479,3812.8,3812.1,2.83299]
[1641221446826,2.00479,3812.8,3812.2,1.5]
[1641221447026,0.128157,3812.7,3812.2,1.5]
[1641221447327,2.00479,3812.8,3811.2,2.43187187]
[1641221447527,2.00479,3812.8,3812.2,1.5]
[1641221447828,1.00479,3812.8,3812.0,0.8048]
[1641221448326,1.00479,3812.8,3812.0,2.04468361]
[1641221448627,1.00479,3812.8,3812.1,2.00479]
[1641221450032,2.00479,3813.4,3812.1,2.64509]
[1641221450436,2.00479,3813.4,3812.2,1.31057992]
[1641221450833,96.5897,3814.7,3813.0,1.5]
[1641221451037,2.623,3818.2,3813.0,1.1489]
[1641221451236,1.3102176,3815.4,3813.4,1.5]
[1641221451434,1.5,3815.3,3813.3,0.83724793]
[1641221451634,1.3102176,3815.4,3813.3,0.83724793]
[1641221451934,0.14830678,3815.2,3813.3,0.83724793]
[1641221452135,1.3102176,3815.4,3813.4,1.5]
[1641221452136,0.14830678,3815.3,3813.4,1.5]
[1641221452333,1.3102176,3815.4,3813.3,0.83724793]
[1641221452334,0.14830678,3815.1,3813.3,0.83724793]
[1641221452536,2.00479,3814.4,3813.5,2.00479]
[1641221452938,1.31066065,3814.1,3813.5,2.00479]
[1641221453134,0.128157,3814.3,3813.5,2.00479]
[1641221454236,2.00479,3814.4,3813.5,3.50479]
[1641221454438,2.00479,3814.4,3813.8,1.5]
[1641221454839,2.132947,3814.4,3813.8,1.5]
[1641221455039,2.132947,3814.4,3813.5,2.71448144]
[1641221455443,2.132947,3814.4,3813.5,2.00479]
[1641221456740,1.46854322,3813.8,3813.7,0.85465086]
[1641221456940,1.46854322,3813.8,3813.7,1.08464186]
[1641221458143,1.46854322,3813.8,3813.7,1.26501054]
[1641221458342,1.46854322,3813.8,3813.7,2.76501054]
[1641221458542,1.69009242,3814.1,3813.7,4.07496554]
[1641221458743,1.3097474,3816.8,3814.0,1.5]
[1641221458943,4.91976762,3816.5,3814.8,1.5]
[1641221459144,3.67135804,3815.1,3814.8,0.912091]
[1641221459945,0.051017,3815.0,3814.8,0.6821]
[1641221460144,0.572317,3815.0,3813.7,0.18036868]
[1641221460345,0.572317,3815.0,3813.6,2.45010365]
[1641221460544,0.572317,3815.0,3814.9,0.88951001]
[1641221460750,2.072317,3815.0,3813.5,2.00479]
[1641221461044,0.572317,3815.0,3813.5,2.00479]
[1641221461645,1.5,3814.5,3813.5,2.00479]
[1641221461846,1.5,3813.8,3813.1,3.7099673]
[1641221462045,0.128157,3813.7,3813.1,3.7099673]
[1641221462248,0.128157,3813.7,3812.4,0.61122738]
[1641221462449,2.00479,3813.0,3812.4,0.61122738]
[1641221462648,2.00479,3813.0,3812.6,1.5]
[1641221462847,2.00479,3813.4,3812.4,0.61122738]
[1641221463048,2.00479,3813.4,3812.2,1.5]
[1641221463647,2.00479,3813.4,3812.1,2.61601738]
[1641221463847,2.00479,3813.4,3813.1,1.5]
[1641221464049,2.00479,3813.4,3813.2,0.229991]
[1641221464249,3.67135804,3814.4,3813.2,0.229991]
[1641221464450,2.00479,3814.6,3813.7,2.00479]
[1641221464650,0.128157,3814.5,3813.7,2.00479]
[1641221464850,0.128157,3814.5,3813.7,3.50479]
[1641221465053,6.87275406,3814.8,3813.7,3.50479]
[1641221465250,6.87275406,3814.8,3814.2,1.30987264]
[1641221465452,3.67135804,3814.8,3814.2,1.30987264]
[1641221465651,1.30987264,3816.4,3814.2,1.30987264]
[1641221465852,0.78604945,3816.6,3813.7,32.92699]
[1641221466049,0.88931211,3816.3,3814.9,1.5]
[1641221466250,0.88931211,3816.3,3816.0,1.5]
[1641221466451,0.88931211,3816.5,3816.1,0.229991]
[1641221466850,2.00479,3817.2,3816.4,1.5]
[1641221467153,2.00479,3817.2,3816.6,1.5]
[1641221467452,67.2876893,3818.3,3816.7,1.5]
[1641221467654,4.9805893,3818.3,3816.7,1.5]
[1641221467854,0.88888322,3818.2,3816.6,1.5]
[1641221468255,1.03702802,3818.2,3816.6,1.5]
[1641221468554,2.00479,3818.1,3817.2,2.00479]
[1641221468757,0.88888322,3818.2,3817.5,1.30874121]
[1641221468953,0.128157,3818.2,3817.2,3.88975626]
[1641221469455,0.128157,3818.2,3817.2,2.58089]
[1641221470457,2.00479,3818.4,3817.7,2.00479]
[1641221471060,2.132947,3818.4,3817.7,2.00479]
[1641221471863,1.5,3817.9,3817.7,2.00479]
[1641221472060,0.051017,3817.8,3817.2,2.00479]
[1641221472662,2.055807,3817.8,3817.2,2.00479]
[1641221472862,2.00479,3817.8,3817.2,2.00479]
[1641221473666,1.5,3817.9,3817.2,2.00479]
[1641221473862,2.132947,3818.4,3817.2,2.00479]
[1641221474062,2.132947,3818.4,3817.3,1.3088063]
[1641221474262,1.5,3817.8,3817.2,2.00479]
[1641221474663,1.5,3817.8,3817.7,2.00479]
[1641221475063,1.5,3818.2,3817.7,2.00479]
[1641221475464,2.132947,3818.4,3817.7,2.00479]
[1641221476066,1.5,3817.9,3817.7,2.00479]
[1641221476367,1.5,3817.9,3817.8,0.229991]
[1641221476566,0.128157,3818.4,3817.7,2.00479]
[1641221478369,3.50479,3818.9,3817.7,2.57309]
[1641221478569,2.00479,3818.9,3818.3,2.00479]
[1641221478771,2.132947,3818.9,3818.3,2.00479]
[1641221480071,2.00479,3819.4,3818.3,2.00479]
[1641221480674,2.00479,3819.4,3818.7,2.00479]
[1641221480872,2.00479,3819.4,3818.7,2.67709]
[1641221481273,2.132947,3819.4,3818.7,2.67709]
[1641221484285,2.132947,3819.4,3818.7,2.00479]
[1641221484489,1.5,3819.1,3818.7,2.00479]
[1641221484684,0.128157,3819.4,3818.7,2.00479]
[1641221488692,3.50479,3820.0,3818.7,2.00479]
[1641221488892,2.00479,3820.0,3819.1,1.30818479]
[1641221489096,2.00479,3820.0,3819.1,1.96738479]
[1641221489695,1.5,3819.8,3819.1,1.96738479]
[1641221489893,0.128157,3819.9,3819.1,1.96738479]
[1641221490094,0.128157,3819.9,3819.1,1.30818479]
[1641221490596,0.128157,3819.9,3819.7,1.30801197]
[1641221490797,1.551017,3819.8,3819.7,1.30801197]
[1641221490995,2.214217,3819.8,3819.7,1.30801197]
[1641221491196,2.214217,3819.8,3819.2,2.00479]
[1641221491399,4.30887311,3819.3,3817.1,1.30887311]
[1641221491599,1.5,3817.6,3817.1,1.30887311]
[1641221491798,1.5,3817.4,3817.1,1.30887311]
[1641221491996,0.051017,3817.3,3815.3,31.6922]
[1641221492398,0.051017,3817.3,3814.9,32.7262]
[1641221492399,0.051017,3817.3,3816.5,1.30910786]
[1641221492599,1.5,3816.9,3816.5,1.30910786]
[1641221492997,1.5,3817.0,3816.5,1.30910786]
[1641221493201,29.5901,3818.8,3816.1,0.6182]
[1641221493398,62.0516,3818.9,3816.1,0.6182]
[1641221493399,1.5,3818.7,3816.9,1.30897248]
[1641221493598,1.30868127,3819.9,3817.7,1.85778127]
[1641221493798,1.5,3819.6,3818.1,1.30853571]
[1641221493998,1.30868127,3819.9,3818.1,1.30853571]
[1641221494200,1.5,3819.0,3818.7,1.30833369]
[1641221494399,0.128157,3819.2,3818.8,0.229991]
[1641221494599,1.5,3819.5,3819.1,2.00479]
[1641221494799,1.5,3819.2,3819.1,2.00479]
[1641221494998,1.551017,3819.2,3819.1,2.00479]
[1641221495200,2.00479,3820.1,3819.1,2.00479]
[1641221495399,1.5,3819.7,3819.1,2.00479]
[1641221495601,1.5,3819.4,3819.1,2.00479]
[1641221495900,0.051017,3819.3,3819.1,2.00479]
[1641221496099,0.88841431,3820.0,3819.1,2.00479]
[1641221496300,0.128157,3819.9,3819.1,2.00479]
[1641221496500,1.5,3819.2,3819.1,2.00479]
[1641221496702,0.051017,3819.2,3819.1,2.00479]
[1641221497103,1.5,3819.4,3819.1,2.234781]
[1641221497301,1.5,3819.4,3819.1,2.00479]
[1641221497503,0.051017,3819.3,3819.1,2.00479]
[1641221497802,1.5,3819.4,3819.1,2.00479]
[1641221498001,0.128157,3819.9,3819.1,2.00479]
[1641221498202,1.5,3819.2,3819.1,2.00479]
[1641221498402,1.551017,3819.2,3819.1,2.00479]
[1641221498605,0.051017,3819.2,3819.1,2.234781]
[1641221498902,1.5,3819.2,3819.1,2.00479]
[1641221499204,0.051017,3819.2,3819.1,2.00479]
[1641221499403,1.5,3819.4,3819.1,2.00479]
[1641221499602,1.5,3819.4,3819.2,0.229991]
[1641221499803,0.128157,3819.9,3819.2,0.229991]
[1641221500004,1.5,3819.9,3819.2,0.229991]
[1641221500202,2.76204393,3821.3,3819.2,0.229991]
[1641221500406,1.5,3820.1,3819.2,0.229991]
[1641221500605,1.5,3820.1,3820.0,2.00479]
[1641221500806,1.5,3820.1,3820.0,2.827181]
[1641221501607,1.551017,3820.1,3820.0,2.59719]
[1641221501809,0.86795123,3820.9,3820.0,2.827181]
[1641221502007,2.36795123,3820.9,3820.0,2.827181]
[1641221502208,0.14803335,3820.8,3820.0,2.827181]
[1641221502809,1.5,3820.7,3820.0,2.827181]
[1641221503009,0.128157,3820.8,3820.0,2.59719]
[1641221503209,1.5,3820.5,3820.0,2.59719]
[1641221503911,0.128157,3820.8,3820.0,2.59719]
[1641221504211,2.36795123,3821.7,3820.6,1.30768869]
[1641221504811,0.14800465,3821.6,3821.3,2.00479]
[1641221505015,1.5,3821.4,3821.3,2.00479]
[1641221505212,0.27616165,3821.6,3821.3,2.234781]
[1641221505411,1.5,3821.4,3821.3,2.00479]
[1641221505611,2.1481,3821.4,3821.3,2.00479]
[1641221505812,2.199117,3821.4,3821.3,2.00479]
[1641221506716,4.35192419,3821.4,3819.9,2.00479]
[1641221506914,1.5,3820.6,3819.9,2.00479]
[1641221507113,2.250257,3820.6,3819.9,2.00479]
[1641221507514,2.1221,3820.6,3819.9,2.00479]
[1641221507917,1.5,3820.5,3819.9,2.00479]
[1641221508115,1.5,3820.1,3819.9,2.00479]
[1641221508317,1.5,3820.1,3820.0,0.229991]
[1641221508515,1.5,3820.3,3820.0,0.229991]
[1641221509116,2.00479,3820.8,3820.0,0.229991]
[1641221509316,1.5,3820.6,3820.0,0.229991]
[1641221509521,3.50479,3820.8,3820.0,0.229991]
[1641221509817,1.5,3820.7,3820.0,0.229991]
[1641221510016,0.128157,3820.6,3820.0,0.229991]
[1641221510618,1.5,3820.5,3820.0,0.229991]
[1641221510819,1.5,3820.5,3820.3,2.00479]
[1641221511323,0.051017,3820.4,3820.3,2.00479]
[1641221511519,0.570917,3820.4,3820.3,2.00479]
[1641221512022,0.699074,3820.4,3819.1,1.30819677]
[1641221512220,1.5,3819.2,3819.1,1.30819677]
[1641221512420,0.8018,3819.2,3819.1,1.53818777]
[1641221512622,0.8018,3819.2,3819.1,1.53817237]
[1641221513623,1.5,3819.4,3819.1,0.229991]
[1641221513824,1.5,3819.6,3819.1,0.229991]
[1641221514224,1.5,3819.6,3818.9,2.00479]
[1641221514526,1.5,3819.6,3818.9,3.3130655]
[1641221515224,1.5,3819.6,3818.9,2.00479]
[1641221516425,1.5,3819.0,3818.9,2.00479]
[1641221516624,2.324117,3819.0,3818.9,2.00479]
[1641221517828,0.7731,3819.0,3818.9,2.234781]
[1641221518028,0.051017,3819.0,3818.9,2.00479]
[1641221519228,0.051017,3819.0,3818.5,3.31319901]
[1641221519229,2.073517,3819.0,3818.5,3.31319901]
[1641221519430,0.128157,3818.9,3818.5,3.31319901]
[1641221519631,1.5,3818.6,3818.5,1.30840901]
[1641221519829,0.051017,3818.6,3817.1,30.804]
[1641221520031,0.051017,3818.6,3816.5,0.89687698]
[1641221520431,0.051017,3818.6,3815.4,63.0004]
[1641221520731,1.5,3818.0,3815.8,0.72083597]
[1641221520930,2.3111,3818.0,3817.3,3.31359288]
[1641221521130,0.8111,3818.0,3817.3,3.31359288]
[1641221521351,1.5,3817.6,3817.3,3.31359288]
[1641221521532,0.051017,3817.5,3817.3,3.31359288]
[1641221521735,1.5,3817.8,3817.3,3.31359288]
[1641221521932,0.939257,3818.0,3817.3,3.31359288]
[1641221522432,1.5,3817.4,3817.3,3.31359288]
[1641221522632,0.128157,3818.0,3817.3,3.31359288]
[1641221522833,1.5,3817.8,3817.3,3.31359288]
[1641221523032,1.5,3817.8,3817.3,1.30880288]
[1641221523233,0.128157,3818.0,3817.1,1.30887997]
[1641221523433,1.5,3817.3,3817.1,1.30887997]
[1641221523634,1.5,3817.8,3817.2,2.234781]
[1641221524035,1.5,3817.9,3817.2,2.234781]
[1641221524235,1.5,3818.0,3817.2,2.234781]
[1641221524436,0.128157,3817.9,3817.2,2.234781]
[1641221524637,1.5,3817.6,3817.2,2.234781]
[1641221525638,0.128157,3817.9,3817.2,2.234781]
[1641221525838,0.128157,3817.9,3817.3,1.30883371]
[1641221526037,1.5,3817.4,3817.3,1.30883371]
[1641221526238,0.128157,3817.9,3817.3,1.53882471]
[1641221526437,1.5,3817.8,3817.3,1.53882471]
[1641221527442,2.00479,3818.2,3817.3,1.53882471]
[1641221527640,3.50479,3818.2,3817.3,1.53882471]
[1641221527842,0.5491,3819.1,3817.3,0.229991]
[1641221529040,1.5,3819.5,3818.9,1.30826865]
[1641221529241,0.128157,3819.4,3818.9,1.30826865]
[1641221529440,1.5,3819.0,3818.9,1.30826865]
[1641221529642,1.551017,3819.0,3818.9,1.30826865]
[1641221530943,1.5,3819.0,3818.9,1.30826865]
[1641221531143,0.128157,3818.9,3818.7,2.00479]
[1641221531342,1.5,3818.8,3818.7,2.00479]
[1641221531642,1.5,3818.8,3818.3,2.00479]
[1641221532244,1.5,3818.8,3818.3,3.31317162]
[1641221532549,1.5,3818.4,3818.3,2.00479]
[1641221532743,1.551017,3818.4,3818.3,2.00479]
[1641221533846,2.00479,3818.9,3818.3,2.234781]
[1641221534048,1.5,3819.5,3818.4,1.30835252]
[1641221534346,1.5,3819.5,3818.7,1.30826694]
[1641221534545,1.5,3819.5,3818.3,2.56769]
[1641221534546,0.128157,3819.4,3818.3,2.56769]
[1641221534946,1.5,3820.5,3818.3,2.56769]
[1641221535150,0.86795123,3820.9,3819.3,1.30776564]
[1641221535347,1.41705123,3820.9,3819.3,0.812]
[1641221535548,1.7463818,3821.8,3820.8,3.31210942]
[1641221535748,1.7463818,3821.8,3820.8,6.03109942]
[1641221535948,1.7463818,3821.8,3820.8,7.21945936]
[1641221536348,4.03849384,3821.1,3820.8,7.21945936]
[1641221536548,4.91976762,3822.2,3821.0,1.30716391]
[1641221536750,4.91976762,3822.2,3820.8,5.91213994]
[1641221536949,4.91976762,3822.2,3822.1,1.30709899]
[1641221537150,4.91976762,3822.2,3822.1,2.13469899]
[1641221537350,4.91976762,3822.2,3822.1,2.36468999]
[1641221538250,0.051017,3822.2,3822.1,2.13469899]
[1641221538452,3.50479,3822.3,3822.1,1.30709899]
[1641221538651,3.50479,3822.3,3822.0,0.83144592]
[1641221538850,1.5,3822.1,3822.0,0.83144592]
[1641221539150,1.5,3822.1,3822.0,1.06143692]
[1641221539551,1.551017,3822.1,3822.0,0.83144592]
[1641221539752,2.00479,3822.3,3822.0,0.83144592]
[1641221539951,3.50479,3822.3,3822.0,0.83144592]
[1641221540156,1.5,3822.1,3821.7,1.4597976]
[1641221540356,1.5,3821.8,3821.7,1.4597976]
[1641221540555,1.551017,3821.8,3821.6,1.4597976]
[1641221540752,1.5,3821.8,3821.6,1.4597976]
[1641221541353,1.5,3821.8,3821.4,2.00479]
[1641221541552,1.5,3821.5,3821.4,2.00479]
[1641221541752,1.5,3821.5,3821.4,2.234781]
[1641221541952,1.628157,3822.0,3821.4,2.234781]
[1641221542552,1.5,3821.8,3821.4,2.00479]
[1641221542955,0.128157,3822.0,3821.4,2.00479]
[1641221543553,1.5,3822.1,3821.4,2.00479]
[1641221543955,1.5,3822.1,3821.4,3.31212138]
[1641221544956,2.00479,3822.3,3821.4,3.31212138]
[1641221545156,1.5,3821.9,3821.4,3.31212138]
[1641221545356,2.00479,3822.3,3821.4,2.00479]
[1641221545657,2.00479,3822.3,3821.4,2.78499]
[1641221545855,2.00479,3822.3,3821.4,4.2447876]
[1641221546456,2.00479,3822.7,3821.4,4.2447876]
[1641221546658,2.00479,3822.7,3822.0,1.18029201]
[1641221546856,1.5,3822.1,3822.0,1.18029201]
[1641221547055,0.051017,3822.1,3822.0,1.18029201]
[1641221547257,1.551017,3822.1,3822.0,1.18029201]
[1641221547456,1.679174,3822.1,3822.0,1.18029201]
[1641221548057,3.179174,3822.1,3822.0,1.18029201]
[1641221548262,3.179174,3822.1,3820.8,2.92120861]
[1641221548459,1.5,3820.9,3820.7,2.92120861]
[1641221548658,1.551017,3820.8,3820.7,2.92120861]
[1641221548858,1.551017,3820.8,3820.1,4.06101272]
[1641221549059,3.0,3820.2,3819.5,4.42677094]
[1641221549260,1.5,3820.0,3819.9,2.334e-05]
[1641221549561,2.130617,3820.0,3819.7,2.95568114]
[1641221549758,3.0,3819.8,3819.7,2.95568114]
[1641221550360,3.051017,3819.8,3819.7,2.95568114]
[1641221550863,3.051017,3819.8,3819.3,2.30063463]
[1641221550864,3.051017,3819.8,3817.1,4.42677094]
[1641221551062,3.051017,3819.8,3817.8,2.00479]
[1641221551261,1.5,3818.5,3817.8,2.00479]
[1641221551464,1.5,3818.5,3818.3,0.229991]
[1641221552862,2.00479,3819.3,3818.3,0.229991]
[1641221553063,3.50479,3819.3,3818.0,0.5491]
[1641221553662,2.00479,3819.3,3818.0,0.5491]
[1641221554264,0.2429485,3819.2,3818.3,1.5]
[1641221554466,0.2429485,3819.2,3818.4,1.5]
[1641221554665,0.2429485,3819.2,3818.6,1.30829604]
[1641221555266,0.3711055,3819.2,3818.2,2.00479]
[1641221555466,1.5,3818.6,3817.9,5.01003039]
[1641221555668,2.00479,3818.2,3817.9,3.70149639]
[1641221555866,0.051017,3818.1,3817.9,4.07164603]
[1641221557368,0.051017,3818.1,3817.3,2.00479]
[1641221557566,1.5,3817.8,3817.2,4.07164603]
[1641221557766,2.00479,3817.3,3817.2,4.07164603]
[1641221557967,2.055807,3817.3,3817.2,4.07164603]
[1641221558369,2.055807,3817.3,3816.7,2.37075739]
[1641221558370,3.555807,3817.3,3816.7,2.37075739]
[1641221558568,1.5,3817.1,3816.7,2.37075739]
[1641221559168,0.8327,3817.4,3816.7,2.37075739]
[1641221559369,0.88795716,3817.7,3816.7,3.03275739]
[1641221559570,0.88795716,3817.7,3816.7,0.662]
[1641221559773,3.3139647,3818.2,3817.1,2.00479]
[1641221560370,2.00479,3818.2,3817.1,2.00479]
[1641221563478,2.00479,3818.2,3817.1,3.31358089]
[1641221563673,2.00479,3818.2,3817.1,2.00479]
[1641221563876,2.00479,3818.2,3817.4,1.30870696]
[1641221564678,0.128157,3818.1,3817.1,2.00479]
[1641221564878,0.128157,3818.1,3816.7,0.87956402]
[1641221564879,1.5,3817.2,3816.7,0.87956402]
[1641221565174,0.6052,3817.2,3816.7,6.402e-05]
[1641221565375,1.5,3817.0,3816.4,1.17275203]
[1641221565775,2.00479,3816.5,3816.4,1.17275203]
[1641221565976,2.055807,3816.5,3816.4,1.17275203]
[1641221566175,2.055807,3816.5,3815.6,2.00479]
[1641221566776,0.128157,3816.4,3815.6,2.00479]
[1641221566978,0.750657,3816.4,3815.3,2.00479]
[1641221567178,1.5,3816.3,3815.2,2.77657702]
[1641221567377,1.5,3815.9,3815.2,0.74054232]
[1641221567576,1.5,3815.9,3815.1,4.07164603]
[1641221567876,4.00958,3815.2,3815.1,4.07164603]
[1641221568076,6.251397,3815.2,3815.1,4.07164603]
[1641221568279,4.70038,3815.2,3815.1,4.30163703]
[1641221568477,1.5,3816.6,3815.1,4.30163703]
[1641221568678,1.5,3816.1,3815.1,4.91313703]
[1641221569378,1.16830186,3815.8,3815.1,4.91313703]
[1641221569578,1.29645886,3815.8,3815.1,0.841491]
[1641221569779,1.29645886,3815.8,3815.3,2.00479]
[1641221570181,2.79645886,3815.8,3815.3,2.00479]
[1641221570383,1.5,3815.4,3814.1,1.30981774]
[1641221570581,2.60644818,3815.8,3814.1,1.30981774]
[1641221570582,1.5,3814.9,3814.3,4.07164603]
[1641221570785,1.5,3814.7,3814.3,4.07164603]
[1641221571181,0.5621,3814.9,3814.3,4.603e-05]
[1641221571496,1.5,3814.4,3813.7,4.42677094]
[1641221571883,1.5,3814.7,3813.7,4.42677094]
[1641221572083,1.0735037,3814.7,3814.4,0.55576814]
[1641221572282,1.5,3814.5,3813.7,4.07563303]
[1641221572881,1.5,3814.2,3813.7,4.07563303]
[1641221573081,1.0735037,3814.7,3813.7,4.07563303]
[1641221573082,1.31048374,3814.4,3813.7,4.07563303]
[1641221573281,1.0735037,3814.7,3813.7,4.88033303]
[1641221573682,1.0735037,3814.7,3813.7,0.8047]
[1641221573981,1.47662849,3814.6,3813.9,1.48242464]
[1641221574184,1.16830186,3814.3,3813.9,1.48242464]
[1641221575684,1.16830186,3814.3,3814.1,1.48242464]
[1641221575685,1.5,3814.3,3814.1,1.48242464]
[1641221575884,0.051017,3814.2,3814.1,1.48242464]
[1641221576085,1.5,3814.4,3814.1,1.48242464]
[1641221576489,1.5,3814.4,3813.9,1.48242464]
[1641221576490,1.16830186,3814.2,3813.9,1.48242464]